[Event "Open Nuevo Centro. Jornada 2"]
[Site "Chess.com"]
[Date "2020.06.26"]
[Round "9"]
[White "Garcia, Jhoel"]
[Black "Randazzo, Adrián"]
[Result "0-1"]
[WhiteElo "2294"]
[BlackElo "2475"]
[TimeControl "180+2"]
[EndTime "12:10:45 PDT"]
[Termination "Victoria de Nikithebest por tiempo"]

1. d4 {[%clk 0:03:00.5]} 1... Nf6 {[%clk 0:03:00.7]} 2. c4 {[%clk 0:03:00.6]}
2... c5 {[%clk 0:03:01.8]} 3. d5 {[%clk 0:02:58.9]} 3... b5 {[%clk 0:03:03.1]}
4. Nf3 {[%clk 0:02:42.1]} 4... g6 {[%clk 0:03:02.3]} 5. Nc3 {[%clk 0:02:41.6]}
5... b4 {[%clk 0:03:03]} 6. Nb1 {[%clk 0:02:41.9]} 6... d6 {[%clk 0:03:04]} 7.
b3 {[%clk 0:02:42.8]} 7... Bg7 {[%clk 0:03:04.7]} 8. Bb2 {[%clk 0:02:44.4]} 8...
O-O {[%clk 0:03:02.7]} 9. Nbd2 {[%clk 0:02:45.5]} 9... e6 {[%clk 0:03:01.2]} 10.
e4 {[%clk 0:02:44.2]} 10... exd5 {[%clk 0:03:00.2]} 11. exd5 {[%clk 0:02:45.6]}
11... Re8+ {[%clk 0:02:59.3]} 12. Be2 {[%clk 0:02:46.8]} 12... Nxd5 {[%clk
0:02:36]} 13. Bxg7 {[%clk 0:02:40.1]} 13... Nf4 {[%clk 0:02:36.4]} 14. Bb2
{[%clk 0:02:17.5]} 14... Rxe2+ {[%clk 0:02:21]} 15. Qxe2 {[%clk 0:02:17.6]}
15... Nxe2 {[%clk 0:01:58.6]} 16. Kxe2 {[%clk 0:01:27.1]} 16... d5 {[%clk
0:01:56.3]} 17. Rhe1 {[%clk 0:01:18.7]} 17... Nc6 {[%clk 0:01:44.3]} 18. Kf1
{[%clk 0:01:18.1]} 18... d4 {[%clk 0:01:45]} 19. Ne4 {[%clk 0:01:19.1]} 19...
Bg4 {[%clk 0:01:41.8]} 20. Nfd2 {[%clk 0:01:13.3]} 20... Bf5 {[%clk 0:01:28.8]}
21. Nxc5 {[%clk 0:01:12.7]} 21... Qd6 {[%clk 0:01:29.2]} 22. Nce4 {[%clk
0:01:09.8]} 22... Bxe4 {[%clk 0:01:27.9]} 23. Nxe4 {[%clk 0:01:09.8]} 23... Qxh2
{[%clk 0:01:27.4]} 24. Ng3 {[%clk 0:01:07.4]} 24... h5 {[%clk 0:01:25.7]} 25.
Ne2 {[%clk 0:00:56.9]} 25... Re8 {[%clk 0:01:20.2]} 26. Ng1 {[%clk 0:00:57.8]}
26... Re6 {[%clk 0:01:16]} 27. Rad1 {[%clk 0:00:51.7]} 27... g5 {[%clk
0:01:13.3]} 28. Rxe6 {[%clk 0:00:49.7]} 28... fxe6 {[%clk 0:01:13.2]} 29. Nf3
{[%clk 0:00:51.3]} 29... Qf4 {[%clk 0:01:10.3]} 30. Nxd4 {[%clk 0:00:51]} 30...
Qd6 {[%clk 0:01:06.8]} 31. Ke2 {[%clk 0:00:48.5]} 31... Qe5+ {[%clk 0:01:06.6]}
32. Kf1 {[%clk 0:00:48.9]} 32... Nxd4 {[%clk 0:01:02.5]} 33. Rxd4 {[%clk
0:00:44.1]} 33... Qf5 {[%clk 0:00:57.8]} 34. Rd8+ {[%clk 0:00:34]} 34... Kf7
{[%clk 0:00:59.1]} 35. Rd7+ {[%clk 0:00:34.7]} 35... Kg6 {[%clk 0:01:00.4]} 36.
Rd2 {[%clk 0:00:19]} 36... Qb1+ {[%clk 0:00:57]} 37. Ke2 {[%clk 0:00:20.2]}
37... Qxa2 {[%clk 0:00:57.7]} 38. c5 {[%clk 0:00:20.2]} 38... Qxb3 {[%clk
0:00:53.7]} 39. Bd4 {[%clk 0:00:18.5]} 39... Qc4+ {[%clk 0:00:50.2]} 40. Ke1
{[%clk 0:00:11.6]} 40... a5 {[%clk 0:00:51.7]} 0

[Event "Open Nuevo Centro. Jornada 2"]
[Site "Chess.com"]
[Date "2020.06.26"]
[Round "9"]
[White "Martínez Carvajal, Juan Francisco"]
[Black "Beneyto de Ramon, Guillermo"]
[Result "0-1"]
[WhiteElo "1712"]
[BlackElo "1515"]
[TimeControl "180+2"]
[EndTime "12:11:02 PDT"]
[Termination "Victoria de GUILLETE por tiempo"]

1. Nf3 {[%clk 0:03:01.9]} 1... d5 {[%clk 0:02:57.2]} 2. c4 {[%clk 0:03:01.1]}
2... e6 {[%clk 0:02:56.4]} 3. b3 {[%clk 0:03:01.1]} 3... Nf6 {[%clk 0:02:55.9]}
4. g3 {[%clk 0:03:02.2]} 4... Bc5 {[%clk 0:02:55]} 5. Bg2 {[%clk 0:03:03.3]}
5... c6 {[%clk 0:02:53.2]} 6. O-O {[%clk 0:03:04]} 6... O-O {[%clk 0:02:53.6]}
7. d4 {[%clk 0:03:04.9]} 7... Bb4 {[%clk 0:02:51.7]} 8. Bd2 {[%clk 0:03:01.8]}
8... Bxd2 {[%clk 0:02:46.5]} 9. Nbxd2 {[%clk 0:03:02.7]} 9... dxc4 {[%clk
0:02:46.5]} 10. bxc4 {[%clk 0:03:03.1]} 10... c5 {[%clk 0:02:43.2]} 11. e3
{[%clk 0:02:56]} 11... cxd4 {[%clk 0:02:42.6]} 12. exd4 {[%clk 0:02:56.8]} 12...
Nc6 {[%clk 0:02:41.7]} 13. Nb3 {[%clk 0:02:49.2]} 13... Bd7 {[%clk 0:02:36.1]}
14. Ne5 {[%clk 0:02:40.8]} 14... h6 {[%clk 0:02:27.8]} 15. Nc5 {[%clk
0:02:36.2]} 15... b6 {[%clk 0:01:02.5]} 16. Ncxd7 {[%clk 0:02:25.4]} 16... Nxd7
{[%clk 0:01:02.1]} 17. Nxc6 {[%clk 0:02:24.9]} 17... Qe8 {[%clk 0:00:56.2]} 18.
Re1 {[%clk 0:02:15.2]} 18... Nf6 {[%clk 0:00:53]} 19. d5 {[%clk 0:02:11.6]}
19... Qd7 {[%clk 0:00:46.3]} 20. dxe6 {[%clk 0:02:08.5]} 20... Qxd1 {[%clk
0:00:45.7]} 21. exf7+ {[%clk 0:02:09.3]} 21... Rxf7 {[%clk 0:00:45.7]} 22. Raxd1
{[%clk 0:02:09.3]} 22... Raf8 {[%clk 0:00:42.1]} 23. Ne5 {[%clk 0:01:26.2]}
23... Rc7 {[%clk 0:00:33.4]} 24. Ng6 {[%clk 0:01:21.1]} 24... Rb8 {[%clk
0:00:24.4]} 25. Ne7+ {[%clk 0:01:16.5]} 25... Kf7 {[%clk 0:00:24.6]} 26. Nd5
{[%clk 0:01:16.3]} 26... Rxc4 {[%clk 0:00:22.1]} 27. Nxf6 {[%clk 0:01:16.9]}
27... Kxf6 {[%clk 0:00:22.4]} 28. Rd7 {[%clk 0:01:14.8]} 28... Ra4 {[%clk
0:00:20.3]} 29. Bd5 {[%clk 0:01:05.7]} 29... g5 {[%clk 0:00:11.9]} 30. Re6+
{[%clk 0:01:04.8]} 30... Kf5 {[%clk 0:00:10.4]} 31. Rf7+ {[%clk 0:01:05]} 31...
Kg4 {[%clk 0:00:08.6]} 32. Bf3+ {[%clk 0:00:56.3]} 32... Kh3 {[%clk 0:00:07.7]}
33. Rxh6+ {[%clk 0:00:56.1]} 33... Rh4 {[%clk 0:00:07.9]} 34. Bg2+ {[%clk
0:00:51.6]} 34... Kg4 {[%clk 0:00:07.3]} 0

[Event "Open Nuevo Centro. Jornada 2"]
[Site "Chess.com"]
[Date "2020.06.26"]
[Round "9"]
[White "Donate Moreno, David"]
[Black "Cayon Pelaez, Pablo"]
[Result "1-0"]
[WhiteElo "1541"]
[BlackElo "1672"]
[TimeControl "180+2"]
[EndTime "12:11:03 PDT"]
[Termination "Victoria de sylar48 por tiempo"]

1. e4 {[%clk 0:03:01.9]} 1... e5 {[%clk 0:03:00.4]} 2. Nf3 {[%clk 0:03:02.5]}
2... Nc6 {[%clk 0:03:01.2]} 3. Bc4 {[%clk 0:03:03.4]} 3... Bc5 {[%clk
0:03:01.5]} 4. c3 {[%clk 0:03:04.3]} 4... Nf6 {[%clk 0:03:02]} 5. d4 {[%clk
0:03:04.8]} 5... exd4 {[%clk 0:03:03.2]} 6. O-O {[%clk 0:03:05.2]} 6... dxc3
{[%clk 0:03:01.7]} 7. e5 {[%clk 0:03:05.9]} 7... d5 {[%clk 0:03:01.6]} 8. Bb3
{[%clk 0:02:50]} 8... Ng4 {[%clk 0:02:52.4]} 9. Bxd5 {[%clk 0:02:48.4]} 9... O-O
{[%clk 0:02:52.6]} 10. Nxc3 {[%clk 0:02:47.7]} 10... Ngxe5 {[%clk 0:02:35]} 11.
Nxe5 {[%clk 0:02:39.1]} 11... Nxe5 {[%clk 0:02:36.9]} 12. Bf4 {[%clk 0:02:32.9]}
12... Ng6 {[%clk 0:02:33.6]} 13. Bg3 {[%clk 0:02:13.1]} 13... c6 {[%clk
0:02:27.3]} 14. Bb3 {[%clk 0:02:10.7]} 14... Bf5 {[%clk 0:02:20.7]} 15. Qxd8
{[%clk 0:02:07.6]} 15... Raxd8 {[%clk 0:02:19.5]} 16. Rad1 {[%clk 0:02:08.6]}
16... Bg4 {[%clk 0:02:13.2]} 17. Rxd8 {[%clk 0:01:50]} 17... Rxd8 {[%clk
0:01:59.8]} 18. Ne4 {[%clk 0:01:42.7]} 18... Bb6 {[%clk 0:01:31.8]} 19. Ng5
{[%clk 0:01:38]} 19... Rd7 {[%clk 0:01:24.1]} 20. Nxf7 {[%clk 0:01:14.6]} 20...
Rxf7 {[%clk 0:01:24.6]} 21. Re1 {[%clk 0:01:15.3]} 21... Kf8 {[%clk 0:01:18.8]}
22. Bd6+ {[%clk 0:01:11.5]} 22... Re7 {[%clk 0:01:02.4]} 23. Re4 {[%clk
0:01:00.1]} 23... Bf5 {[%clk 0:00:53.7]} 24. Rf4 {[%clk 0:00:56.7]} 24... Ke8
{[%clk 0:00:44]} 25. Bxe7 {[%clk 0:00:53.3]} 25... Nxe7 {[%clk 0:00:45.9]} 26.
g4 {[%clk 0:00:46.2]} 26... Bg6 {[%clk 0:00:44]} 27. h4 {[%clk 0:00:45.8]} 27...
Nd5 {[%clk 0:00:33.3]} 28. Bxd5 {[%clk 0:00:38]} 28... cxd5 {[%clk 0:00:35.2]}
29. h5 {[%clk 0:00:38.3]} 29... Bf7 {[%clk 0:00:36.5]} 30. Kg2 {[%clk
0:00:32.9]} 30... Be6 {[%clk 0:00:36.9]} 31. g5 {[%clk 0:00:31.4]} 31... Ke7
{[%clk 0:00:37.6]} 32. Rh4 {[%clk 0:00:30.8]} 32... Bc5 {[%clk 0:00:30.3]} 33.
f4 {[%clk 0:00:30.8]} 33... Bf5 {[%clk 0:00:30.1]} 34. Kg3 {[%clk 0:00:19.4]}
34... Bb4 {[%clk 0:00:30]} 35. Rh1 {[%clk 0:00:19.5]} 35... Bd6 {[%clk
0:00:25.3]} 36. Re1+ {[%clk 0:00:19.5]} 36... Be4 {[%clk 0:00:26.3]} 37. Kg4
{[%clk 0:00:16.8]} 1

[Event "Open Nuevo Centro. Jornada 2"]
[Site "Chess.com"]
[Date "2020.06.26"]
[Round "9"]
[White "Campos Gambuti, Luis María"]
[Black "Gil López, Alejandro"]
[Result "0-1"]
[WhiteElo "2404"]
[BlackElo "2128"]
[TimeControl "180+2"]
[EndTime "12:11:06 PDT"]
[Termination "Victoria de AglVal0313 por tiempo"]

1. d4 {[%clk 0:03:01.9]} 1... e5 {[%clk 0:03:01.2]} 2. dxe5 {[%clk 0:03:01.4]}
2... d6 {[%clk 0:03:02.3]} 3. Nf3 {[%clk 0:03:01.1]} 3... Nc6 {[%clk 0:03:02.6]}
4. Bf4 {[%clk 0:03:01.9]} 4... Bg4 {[%clk 0:03:01.7]} 5. Nbd2 {[%clk 0:03:01.6]}
5... dxe5 {[%clk 0:02:59.6]} 6. Nxe5 {[%clk 0:02:59.9]} 6... Nxe5 {[%clk
0:02:56.4]} 7. Bxe5 {[%clk 0:03:00.7]} 7... Qe7 {[%clk 0:02:53.6]} 8. Bg3 {[%clk
0:02:43.3]} 8... O-O-O {[%clk 0:02:53.4]} 9. c3 {[%clk 0:02:44.3]} 9... h5
{[%clk 0:02:46.3]} 10. Qa4 {[%clk 0:02:38.9]} 10... Qd7 {[%clk 0:02:38.6]} 11.
Qxd7+ {[%clk 0:02:38]} 11... Rxd7 {[%clk 0:02:38.4]} 12. h3 {[%clk 0:02:38.9]}
12... Be6 {[%clk 0:02:36.9]} 13. e3 {[%clk 0:02:39.8]} 13... h4 {[%clk
0:02:33.9]} 14. Bh2 {[%clk 0:02:40]} 14... Nf6 {[%clk 0:02:31.8]} 15. Bc4 {[%clk
0:02:38.2]} 15... Bxc4 {[%clk 0:01:20.3]} 16. Nxc4 {[%clk 0:02:15.1]} 16... Be7
{[%clk 0:01:16.2]} 17. Ke2 {[%clk 0:02:13.2]} 17... Rhd8 {[%clk 0:01:11.7]} 18.
Rhd1 {[%clk 0:02:09.8]} 18... Rxd1 {[%clk 0:01:13.1]} 19. Rxd1 {[%clk
0:02:09.9]} 19... Rxd1 {[%clk 0:01:14.7]} 20. Kxd1 {[%clk 0:02:11.4]} 20... Ne4
{[%clk 0:01:09.3]} 21. Ke2 {[%clk 0:02:10.9]} 21... f6 {[%clk 0:01:09.3]} 22.
Nd2 {[%clk 0:02:11]} 22... Nc5 {[%clk 0:01:07.6]} 23. b3 {[%clk 0:02:09.8]}
23... c6 {[%clk 0:01:03.8]} 24. e4 {[%clk 0:02:06.7]} 24... Kd7 {[%clk
0:01:05.1]} 25. Bf4 {[%clk 0:01:56]} 25... a5 {[%clk 0:00:57.4]} 26. Be3 {[%clk
0:01:56.6]} 26... Ne6 {[%clk 0:00:54.8]} 27. a4 {[%clk 0:01:45.6]} 27... b5
{[%clk 0:00:50.3]} 28. Kd3 {[%clk 0:01:41.7]} 28... g5 {[%clk 0:00:46.5]} 29. c4
{[%clk 0:01:38.5]} 29... b4 {[%clk 0:00:46.4]} 30. e5 {[%clk 0:01:14.5]} 30...
f5 {[%clk 0:00:39.7]} 31. g3 {[%clk 0:01:14.5]} 31... g4 {[%clk 0:00:11.6]} 32.
hxg4 {[%clk 0:01:00.2]} 32... h3 {[%clk 0:00:13.5]} 33. Nf1 {[%clk 0:01:00.6]}
33... fxg4 {[%clk 0:00:12.5]} 34. Ke4 {[%clk 0:01:00]} 34... Ng5+ {[%clk
0:00:12.5]} 35. Kf5 {[%clk 0:00:59]} 35... Nf3 {[%clk 0:00:11.7]} 36. Kxg4
{[%clk 0:00:59.7]} 36... h2 {[%clk 0:00:12.7]} 37. Nxh2 {[%clk 0:01:00.8]} 37...
Nxh2+ {[%clk 0:00:14.6]} 38. Kf5 {[%clk 0:01:02.4]} 38... Nf1 {[%clk 0:00:15.4]}
0

[Event "Open Nuevo Centro. Jornada 2"]
[Site "Chess.com"]
[Date "2020.06.26"]
[Round "9"]
[White "García Oviedo, Alejandro"]
[Black "Albuixech Sanz, Jorge"]
[Result "0-1"]
[WhiteElo "1873"]
[BlackElo "1742"]
[TimeControl "180+2"]
[EndTime "12:11:23 PDT"]
[Termination "Victoria de Gamyi2 por tiempo"]

1. Nf3 {[%clk 0:03:01.8]} 1... Nf6 {[%clk 0:03:00]} 2. d4 {[%clk 0:03:03.7]}
2... g6 {[%clk 0:03:00.9]} 3. g3 {[%clk 0:03:05.6]} 3... Bg7 {[%clk 0:03:01.8]}
4. Bg2 {[%clk 0:03:07.5]} 4... d6 {[%clk 0:03:03.3]} 5. O-O {[%clk 0:03:09.4]}
5... O-O {[%clk 0:03:04.6]} 6. c4 {[%clk 0:03:10.6]} 6... Nc6 {[%clk 0:03:04.8]}
7. Nc3 {[%clk 0:03:12.5]} 7... e5 {[%clk 0:03:04]} 8. d5 {[%clk 0:03:14.4]} 8...
Nb8 {[%clk 0:03:04.9]} 9. e4 {[%clk 0:03:12.9]} 9... a5 {[%clk 0:03:05.8]} 10.
Be3 {[%clk 0:03:09.5]} 10... Na6 {[%clk 0:03:06.7]} 11. Nd2 {[%clk 0:03:06.3]}
11... Nc5 {[%clk 0:02:55]} 12. Na4 {[%clk 0:03:06.8]} 12... Nxa4 {[%clk
0:02:32.7]} 13. Qxa4 {[%clk 0:03:08.7]} 13... Bd7 {[%clk 0:02:33.9]} 14. Qc2
{[%clk 0:03:08.5]} 14... Ng4 {[%clk 0:02:22]} 15. Rac1 {[%clk 0:02:59.6]} 15...
Nxe3 {[%clk 0:02:22.4]} 16. fxe3 {[%clk 0:02:31.3]} 16... Qg5 {[%clk 0:02:22]}
17. Qd3 {[%clk 0:02:28]} 17... f5 {[%clk 0:02:21.3]} 18. exf5 {[%clk 0:02:16.3]}
18... gxf5 {[%clk 0:02:07.2]} 19. e4 {[%clk 0:02:05.1]} 19... f4 {[%clk
0:02:02.9]} 20. c5 {[%clk 0:02:03.7]} 20... fxg3 {[%clk 0:01:55.9]} 21. hxg3
{[%clk 0:02:03]} 21... Bh6 {[%clk 0:01:46.7]} 22. Nf3 {[%clk 0:02:02.4]} 22...
Qe3+ {[%clk 0:01:46.9]} 23. Qxe3 {[%clk 0:02:02.9]} 23... Bxe3+ {[%clk
0:01:47.7]} 24. Kh2 {[%clk 0:02:04.8]} 24... Bxc1 {[%clk 0:01:47.4]} 25. Rxc1
{[%clk 0:02:06.7]} 25... Bg4 {[%clk 0:01:33.4]} 26. Rc3 {[%clk 0:01:54.5]} 26...
Bxf3 {[%clk 0:01:22.1]} 27. Bxf3 {[%clk 0:01:51.5]} 27... dxc5 {[%clk
0:01:23.2]} 28. Kg2 {[%clk 0:01:52]} 28... b6 {[%clk 0:01:23.5]} 29. Bg4 {[%clk
0:01:52.5]} 29... Rf6 {[%clk 0:01:20.6]} 30. Bf5 {[%clk 0:01:52.7]} 30... Raf8
{[%clk 0:01:17.9]} 31. g4 {[%clk 0:01:54.3]} 31... h5 {[%clk 0:01:00.6]} 32. Rg3
{[%clk 0:01:54.6]} 32... hxg4 {[%clk 0:00:54.1]} 33. Rxg4+ {[%clk 0:01:52.4]}
33... Kf7 {[%clk 0:00:50.6]} 34. Rh4 {[%clk 0:01:52.4]} 34... Rg8+ {[%clk
0:00:42.5]} 35. Kf2 {[%clk 0:01:52.8]} 35... Rg7 {[%clk 0:00:43.5]} 36. Rh8
{[%clk 0:01:36.2]} 36... Rxf5+ {[%clk 0:00:36.6]} 37. exf5 {[%clk 0:01:28.1]}
37... Kf6 {[%clk 0:00:37.8]} 38. Rf8+ {[%clk 0:01:21.8]} 38... Rf7 {[%clk
0:00:38.3]} 39. Rd8 {[%clk 0:01:06.5]} 39... Kxf5 {[%clk 0:00:37.6]} 40. Ke3
{[%clk 0:01:06.6]} 40... Kf6 {[%clk 0:00:24.1]} 41. Rc8 {[%clk 0:00:39.6]} 41...
Kg5 {[%clk 0:00:20.4]} 0

[Event "Open Nuevo Centro. Jornada 2"]
[Site "Chess.com"]
[Date "2020.06.26"]
[Round "9"]
[White "Marín Corresa, Arturo"]
[Black "Lloret Ramis, Juan José"]
[Result "1-0"]
[WhiteElo "2197"]
[BlackElo "1984"]
[TimeControl "180+2"]
[EndTime "12:11:24 PDT"]
[Termination "Victoria de Estivella por tiempo"]

1. e4 {[%clk 0:03:01.9]} 1... e6 {[%clk 0:03:01.4]} 2. d4 {[%clk 0:03:02.3]}
2... d5 {[%clk 0:03:02.7]} 3. e5 {[%clk 0:03:03.1]} 3... c5 {[%clk 0:03:02.9]}
4. c3 {[%clk 0:03:03.8]} 4... Nc6 {[%clk 0:03:04]} 5. Nf3 {[%clk 0:03:04.1]}
5... Bd7 {[%clk 0:03:05.4]} 6. a3 {[%clk 0:03:04.5]} 6... f6 {[%clk 0:03:06.5]}
7. Be2 {[%clk 0:02:57.3]} 7... Qc7 {[%clk 0:02:57]} 8. Bf4 {[%clk 0:02:54.3]}
8... g5 {[%clk 0:02:57.6]} 9. Bg3 {[%clk 0:02:54.8]} 9... g4 {[%clk 0:02:49]}
10. exf6 {[%clk 0:02:50.3]} 10... Qb6 {[%clk 0:02:36.5]} 11. f7+ {[%clk
0:02:44.7]} 11... Kxf7 {[%clk 0:02:35.7]} 12. Ne5+ {[%clk 0:02:41]} 12... Nxe5
{[%clk 0:02:34.6]} 13. Bxe5 {[%clk 0:02:41.3]} 13... Bg7 {[%clk 0:02:36.1]} 14.
Bxg7 {[%clk 0:02:09.1]} 14... Kxg7 {[%clk 0:02:36.8]} 15. b4 {[%clk 0:00:58.2]}
15... cxd4 {[%clk 0:02:30.4]} 16. cxd4 {[%clk 0:00:58.2]} 16... Nf6 {[%clk
0:02:17.4]} 17. O-O {[%clk 0:00:58]} 17... Bb5 {[%clk 0:02:14.3]} 18. Nc3 {[%clk
0:00:53.5]} 18... Bxe2 {[%clk 0:02:11.8]} 19. Qxe2 {[%clk 0:00:54.1]} 19... Qxd4
{[%clk 0:02:07.6]} 20. Nb5 {[%clk 0:00:54.6]} 20... Qf4 {[%clk 0:01:58.8]} 21.
Rfe1 {[%clk 0:00:48.3]} 21... Ne4 {[%clk 0:01:50.6]} 22. f3 {[%clk 0:00:42.7]}
22... gxf3 {[%clk 0:01:45.9]} 23. gxf3 {[%clk 0:00:43.2]} 23... Ng5 {[%clk
0:01:35.9]} 24. Rf1 {[%clk 0:00:40.2]} 24... Rhg8 {[%clk 0:01:29.9]} 25. Kh1
{[%clk 0:00:40.7]} 25... Raf8 {[%clk 0:01:21.8]} 26. Rae1 {[%clk 0:00:41.2]}
26... Kh8 {[%clk 0:01:22.2]} 27. Qb2+ {[%clk 0:00:40.9]} 27... Qf6 {[%clk
0:01:06.7]} 28. Qxf6+ {[%clk 0:00:41.4]} 28... Rxf6 {[%clk 0:01:08.1]} 29. f4
{[%clk 0:00:41.9]} 29... Ne4 {[%clk 0:01:05.2]} 30. Nxa7 {[%clk 0:00:40.5]}
30... Rgf8 {[%clk 0:01:02.3]} 31. Nb5 {[%clk 0:00:41]} 31... Rxf4 {[%clk
0:01:02.1]} 32. Rxf4 {[%clk 0:00:39.9]} 32... Rxf4 {[%clk 0:01:03.4]} 33. Nc7
{[%clk 0:00:40.7]} 33... Rg4 {[%clk 0:00:51.4]} 34. h3 {[%clk 0:00:40.2]} 34...
Rg3 {[%clk 0:00:46]} 35. Kh2 {[%clk 0:00:41]} 35... Rxa3 {[%clk 0:00:46.4]} 36.
Nxe6 {[%clk 0:00:41.9]} 36... Rb3 {[%clk 0:00:40.3]} 37. Nf4 {[%clk 0:00:39.7]}
37... Rxb4 {[%clk 0:00:36.4]} 38. Nxd5 {[%clk 0:00:15.7]} 38... Rb2+ {[%clk
0:00:36.7]} 39. Kg1 {[%clk 0:00:13.6]} 39... Nf2 {[%clk 0:00:33.1]} 40. Re7
{[%clk 0:00:14]} 1

[Event "Open Nuevo Centro. Jornada 2"]
[Site "Chess.com"]
[Date "2020.06.26"]
[Round "9"]
[White "Méndez Giménez , Néstor Emmanuel"]
[Black "Hassomal Daswani, Birjkumar"]
[Result "0-1"]
[WhiteElo "1141"]
[BlackElo "1823"]
[TimeControl "180+2"]
[EndTime "12:11:40 PDT"]
[Termination "Victoria de daz000007 por tiempo"]

1. e4 {[%clk 0:03:01.9]} 1... c5 {[%clk 0:02:59]} 2. Nf3 {[%clk 0:03:02.6]} 2...
e6 {[%clk 0:02:57.8]} 3. d4 {[%clk 0:03:03.9]} 3... cxd4 {[%clk 0:02:58.2]} 4.
Bd3 {[%clk 0:03:05.8]} 4... Nc6 {[%clk 0:02:56.8]} 5. e5 {[%clk 0:02:59.6]} 5...
Nxe5 {[%clk 0:02:53.6]} 6. Nxe5 {[%clk 0:02:59.4]} 6... Qa5+ {[%clk 0:02:53.9]}
7. Bd2 {[%clk 0:02:55.9]} 7... Qxe5+ {[%clk 0:02:52.6]} 8. Be2 {[%clk
0:02:56.5]} 8... Nf6 {[%clk 0:02:48.4]} 9. O-O {[%clk 0:02:56.4]} 9... Bd6
{[%clk 0:02:48.8]} 10. g3 {[%clk 0:02:46.6]} 10... Qc5 {[%clk 0:02:48.1]} 11. c3
{[%clk 0:02:45.3]} 11... O-O {[%clk 0:02:40.8]} 12. b4 {[%clk 0:02:31.5]} 12...
Qb6 {[%clk 0:00:42.5]} 13. Bg5 {[%clk 0:02:17.7]} 13... Be7 {[%clk 0:00:40.1]}
14. Qd3 {[%clk 0:02:15.7]} 14... dxc3 {[%clk 0:00:40.3]} 15. Nxc3 {[%clk
0:02:16]} 15... d5 {[%clk 0:00:40.3]} 16. Bxf6 {[%clk 0:02:15.2]} 16... Bxf6
{[%clk 0:00:41]} 17. Bd1 {[%clk 0:02:14]} 17... Bd7 {[%clk 0:00:39.9]} 18. Bc2
{[%clk 0:02:13.7]} 18... g6 {[%clk 0:00:38.5]} 19. h4 {[%clk 0:02:11.1]} 19...
Qxb4 {[%clk 0:00:38.9]} 20. h5 {[%clk 0:02:10.7]} 20... Qxc3 {[%clk 0:00:38.9]}
21. hxg6 {[%clk 0:02:10.6]} 21... Qxd3 {[%clk 0:00:36.8]} 22. Bxd3 {[%clk
0:02:10.8]} 22... Bxa1 {[%clk 0:00:37]} 23. gxh7+ {[%clk 0:02:10.7]} 23... Kg7
{[%clk 0:00:37.2]} 24. Rxa1 {[%clk 0:02:08.4]} 24... e5 {[%clk 0:00:36.6]} 25.
f3 {[%clk 0:02:05.5]} 25... Bc6 {[%clk 0:00:37]} 26. Kf2 {[%clk 0:02:03.9]}
26... e4 {[%clk 0:00:37.7]} 27. fxe4 {[%clk 0:02:04.1]} 27... dxe4 {[%clk
0:00:38.4]} 28. Bc4 {[%clk 0:01:54.8]} 28... Rh8 {[%clk 0:00:37.3]} 29. Rf1
{[%clk 0:01:40.2]} 29... Rxh7 {[%clk 0:00:36]} 30. Ke3 {[%clk 0:01:39.6]} 30...
Kf8 {[%clk 0:00:36.5]} 31. g4 {[%clk 0:01:37.4]} 31... Rd8 {[%clk 0:00:36.2]}
32. g5 {[%clk 0:01:33.8]} 32... Rh3+ {[%clk 0:00:35.7]} 33. Ke2 {[%clk
0:01:31.6]} 33... a6 {[%clk 0:00:33.8]} 34. Rxf7+ {[%clk 0:01:28.3]} 34... Ke8
{[%clk 0:00:32.6]} 35. g6 {[%clk 0:01:29]} 35... Rc3 {[%clk 0:00:31.6]} 36. g7
{[%clk 0:01:29]} 36... Rg3 {[%clk 0:00:27.3]} 37. Rf8+ {[%clk 0:01:06.3]} 37...
Ke7 {[%clk 0:00:26.6]} 38. g8=Q {[%clk 0:00:51.4]} 38... Rxg8 {[%clk 0:00:25.1]}
39. Rxg8 {[%clk 0:00:48.2]} 39... Rxg8 {[%clk 0:00:24.9]} 40. Bxg8 {[%clk
0:00:48.3]} 40... Kd6 {[%clk 0:00:25.7]} 41. Ke3 {[%clk 0:00:44.5]} 41... Bd5
{[%clk 0:00:26.5]} 0